bitfinex/quotes_SOLUSD_20241127
["timestamp","ask_amount","ask_price","bid_price","bid_amount"]
[1732708394886,20.86383102,235.44,235.43,0.5143397]
[1732708396187,65.50454604,235.44,235.43,0.5143397]
[1732708396394,65.50454604,235.44,235.08,20.86383102]
[1732708396395,20.0,235.4,235.26,20.86383102]
[1732708396695,20.86383102,235.33,235.26,20.86383102]
[1732708397181,20.86383102,235.34,235.26,20.86383102]
[1732708397569,20.86383102,235.36,235.28,20.86383102]
[1732708397769,20.86383102,235.37,235.29,20.86383102]
[1732708398686,5.07775637,235.48,235.23,20.0]
[1732708398687,20.86383102,235.68,235.33,20.86383102]
[1732708398887,20.86383102,235.41,235.34,20.86383102]
[1732708402175,20.86383102,235.45,235.38,20.86383102]
[1732708402497,20.86383102,235.39,235.28,20.86383102]
[1732708402680,20.86383102,235.36,235.28,20.86383102]
[1732708402874,20.86383102,235.36,235.29,20.86383102]
[1732708403069,20.86383102,235.33,235.25,20.86383102]
[1732708403483,20.86383102,235.31,235.23,20.86383102]
[1732708408395,20.86383102,235.33,235.25,20.86383102]
[1732708409270,20.86383102,235.35,235.27,20.86383102]
[1732708410384,13.01820722,235.35,235.27,13.01820722]
[1732708410580,13.01820722,235.37,235.29,13.01820722]
[1732708412289,13.01820722,235.35,235.27,13.01820722]
[1732708412497,13.01820722,235.31,235.24,13.01820722]
[1732708413170,13.01820722,235.31,235.23,13.01820722]
[1732708414309,20.83677165,235.31,235.23,20.83677165]
[1732708415291,20.83677165,235.29,235.22,20.83677165]
[1732708416391,20.83677165,235.3,235.22,20.83677165]
[1732708416594,20.83677165,235.29,235.22,20.83677165]
[1732708417996,5.25903821,235.41,235.14,20.0]
[1732708417997,20.83677165,235.3,235.23,20.83677165]
[1732708418200,7.06513944,235.41,235.24,20.83677165]
[1732708418201,20.83677165,235.31,235.24,20.83677165]
[1732708420296,20.83677165,235.31,235.16,6.62693281]
[1732708420297,20.83677165,235.33,235.26,20.83677165]
[1732708421417,20.83677165,235.37,235.3,20.83677165]
[1732708421727,20.83677165,235.38,235.3,20.83677165]
[1732708421901,20.83677165,235.39,235.31,20.83677165]
[1732708422110,20.83677165,235.42,235.34,20.83677165]
[1732708422405,212.7703183,235.71,235.27,20.0]
[1732708422406,20.83677165,235.43,235.36,20.83677165]
[1732708424518,22.58788199,235.56,235.33,20.83677165]
[1732708424519,20.83677165,235.41,235.33,20.83677165]
[1732708424809,20.83677165,235.38,235.31,20.83677165]
[1732708426011,20.83677165,235.4,235.32,20.83677165]
[1732708430121,20.83677165,235.36,235.28,20.83677165]
[1732708430328,20.83677165,235.34,235.26,20.83677165]
[1732708430501,20.83677165,235.32,235.26,20.83677165]
[1732708430916,20.83677165,235.32,235.12,26.73710633]
[1732708430917,20.83677165,235.3,235.22,20.83677165]
[1732708434410,13.02401791,235.29,235.22,13.02401791]
[1732708437907,13.02401791,235.3,235.22,13.02401791]
[1732708440328,13.02401791,235.27,235.19,13.53835761]
[1732708440518,13.02401791,235.26,235.19,0.5143397]
[1732708441619,13.02401791,235.27,235.19,13.53835761]
[1732708441838,13.02401791,235.28,235.2,13.02401791]
[1732708443828,13.02401791,235.25,235.19,0.5143397]
[1732708444013,13.02401791,235.23,235.19,0.5143397]
[1732708444207,13.02401791,235.24,235.19,0.5143397]
[1732708445030,13.02401791,235.25,235.19,0.5143397]
[1732708449014,13.02401791,235.24,235.19,0.5143397]
[1732708449215,13.02401791,235.2,235.19,0.5143397]
[1732708456344,36.80090191,235.2,235.19,0.5143397]
[1732708458522,20.0,235.16,234.96,0.5143397]
[1732708458831,13.02401791,235.09,235.0,13.02401791]
[1732708459925,13.02401791,235.07,235.0,13.02401791]
[1732708460835,13.02401791,235.01,234.96,0.5143397]
[1732708461148,13.02401791,234.98,234.96,0.5143397]
[1732708462649,13.02401791,234.99,234.96,0.5143397]
[1732708466554,13.02401791,235.01,234.96,0.5143397]
[1732708467139,13.02401791,234.99,234.96,0.5143397]
[1732708467355,13.02401791,234.97,234.96,0.5143397]
[1732708470626,23.776884,235.02,234.96,0.5143397]
[1732708470830,13.02401791,234.97,234.96,0.5143397]
[1732708475135,13.02401791,235.0,234.96,0.5143397]
[1732708475352,13.02401791,235.02,234.96,0.5143397]
[1732708476353,13.02401791,235.08,234.96,0.5143397]
[1732708476354,13.02401791,235.0,234.96,0.5143397]
[1732708477933,1.81671279,235.09,234.96,0.5143397]
[1732708478134,13.02401791,235.01,234.96,0.5143397]
[1732708483953,13.02401791,235.12,235.03,13.02401791]
[1732708485447,12.78,235.49,235.1,13.02401791]
[1732708485762,13.02401791,235.22,235.13,13.02401791]
[1732708486140,13.02401791,235.22,235.04,36.566884]
[1732708486141,13.02401791,235.24,235.15,13.02401791]
[1732708487157,7.9621513,235.4,235.17,13.02401791]
[1732708487364,21.93176755,235.66,235.15,12.79]
[1732708487365,212.77572322,235.61,235.26,13.02401791]
[1732708487538,13.02401791,235.35,235.26,13.02401791]
[1732708489273,13.02401791,235.34,235.15,14.62010733]
[1732708489460,20.0,235.41,235.15,14.62010733]
[1732708489461,13.02401791,235.32,235.25,13.02401791]
[1732708489657,20.0,235.41,235.25,13.02401791]
[1732708489658,13.02401791,235.34,235.25,13.02401791]
[1732708491804,3.83593284,235.49,235.32,13.02401791]
[1732708492062,212.77572322,235.71,235.25,12.79]
[1732708492063,13.02401791,235.43,235.34,13.02401791]
[1732708492871,3.83593284,235.67,235.38,13.02401791]
[1732708493053,13.02401791,235.47,235.38,13.02401791]
[1732708493251,13.02401791,235.47,235.4,13.02401791]
[1732708493471,13.02401791,235.45,235.36,13.02401791]
[1732708495869,13.02401791,235.45,235.28,12.79]
[1732708495870,13.02401791,235.41,235.22,12.78]
[1732708496183,23.776884,235.55,235.22,12.78]
[1732708496184,13.02401791,235.35,235.27,13.02401791]
[1732708501802,13.02401791,235.31,235.23,13.02401791]
[1732708503795,13.02401791,235.29,235.21,13.02401791]
[1732708503973,13.02401791,235.27,235.21,13.02401791]
[1732708504171,13.02401791,235.28,235.21,13.02401791]
[1732708505293,13.02401791,235.3,235.21,13.02401791]
[1732708505596,13.02401791,235.31,235.23,13.02401791]
[1732708506093,13.02401791,235.31,235.13,23.776884]
[1732708506094,13.02401791,235.34,235.26,13.02401791]
[1732708506291,13.02401791,235.35,235.27,13.02401791]
[1732708506593,13.02401791,235.3,235.15,12.78]
[1732708506766,13.02401791,235.26,235.19,13.02401791]
[1732708507301,13.02401791,235.22,235.14,13.02401791]
[1732708507677,13.02401791,235.22,235.06,14.52870462]
[1732708507989,13.02401791,235.22,235.13,13.02401791]
[1732708508572,13.02401791,235.22,235.15,13.02401791]
[1732708508786,13.02401791,235.24,235.17,13.02401791]
[1732708509187,212.77572322,235.53,235.21,13.02401791]
[1732708509378,13.02401791,235.29,235.21,13.02401791]
[1732708509794,13.02401791,235.29,235.23,13.02401791]
[1732708510001,7.96659271,235.52,235.23,13.02401791]
[1732708510189,13.02401791,235.31,235.23,13.02401791]
[1732708510388,13.02401791,235.33,235.25,13.02401791]
[1732708510694,13.02401791,235.29,235.21,13.02401791]
[1732708510883,13.02401791,235.27,235.19,13.02401791]
[1732708511684,13.02401791,235.27,235.2,13.02401791]
[1732708511883,3.83593284,235.52,235.16,20.0]
[1732708511884,13.02401791,235.25,235.16,20.0]
[1732708512076,13.02401791,235.23,235.15,13.02401791]
[1732708512399,13.02401791,235.23,235.08,13.02401791]
[1732708512400,20.85295061,235.22,235.14,20.85295061]
[1732708512575,20.85295061,235.24,235.16,20.85295061]
[1732708512779,20.85295061,235.22,235.14,20.85295061]
[1732708513197,20.85295061,235.23,235.15,20.85295061]
[1732708514405,20.85295061,235.21,235.15,20.85295061]
[1732708515103,20.85295061,235.23,235.15,20.85295061]
[1732708516307,20.85295061,235.25,235.17,20.85295061]
[1732708516784,20.85295061,235.21,235.13,20.85295061]
[1732708521193,20.85295061,235.21,235.15,20.85295061]
[1732708522087,20.85295061,235.19,235.11,20.85295061]
[1732708526582,21.83603822,235.28,234.96,0.5143397]
[1732708526583,23.776884,235.09,234.96,0.5143397]
[1732708526907,20.85295061,235.05,234.96,21.36729031]
[1732708527201,20.85295061,235.05,234.98,20.85295061]
[1732708528404,20.85295061,234.99,234.96,0.5143397]
[1732708529895,20.85295061,235.01,234.96,0.5143397]
[1732708530112,20.85295061,235.05,234.97,20.85295061]
[1732708530997,20.85295061,235.03,234.96,0.5143397]
[1732708532413,20.85295061,235.01,234.96,0.5143397]
[1732708534812,20.85295061,234.99,234.96,0.5143397]
[1732708535000,20.85295061,234.97,234.96,0.5143397]
[1732708535607,44.62983461,234.97,234.96,0.5143397]
[1732708536798,23.776884,235.09,234.96,0.5143397]
[1732708537017,20.85295061,235.0,234.96,0.5143397]
[1732708537320,20.85295061,235.04,234.96,0.5143397]
[1732708537522,20.85295061,235.04,234.97,20.85295061]
[1732708537726,20.85295061,235.07,234.96,0.5143397]
[1732708537920,20.85295061,235.07,235.0,20.85295061]
[1732708541201,20.85295061,235.07,234.98,20.85295061]
[1732708542914,20.85295061,235.07,235.0,20.85295061]
[1732708544398,13.04822208,235.08,235.0,13.04822208]
[1732708544822,20.0,235.17,235.0,13.04822208]
[1732708545027,43.776884,235.16,235.0,13.04822208]
[1732708545325,13.04822208,235.09,235.0,13.04822208]
[1732708545521,1.8067278,235.2,235.03,33.04822208]
[1732708545723,13.04822208,235.23,235.14,13.04822208]
[1732708545912,13.04822208,235.2,235.12,13.04822208]
[1732708546097,13.04822208,235.18,235.1,13.04822208]
[1732708546303,13.04822208,235.14,235.06,13.04822208]
[1732708546821,13.04822208,235.18,235.08,13.04822208]
[1732708547429,11.16717716,235.48,235.14,13.04822208]
[1732708547725,13.04822208,235.28,235.19,13.04822208]
[1732708548028,13.04822208,235.28,235.21,13.04822208]
[1732708548421,20.84218151,235.28,235.2,20.84218151]
[1732708548728,20.84218151,235.3,235.22,20.84218151]
[1732708548930,20.84218151,235.32,235.22,20.84218151]
[1732708549226,20.84218151,235.34,235.26,20.84218151]
[1732708553436,20.84218151,235.32,235.24,20.84218151]
[1732708554234,22.6094725,235.44,235.26,20.84218151]
[1732708554526,20.0,235.33,235.28,20.84218151]
[1732708554710,20.0,235.33,235.26,20.84218151]
[1732708555330,19.94393787,235.33,235.26,20.84218151]
[1732708556326,20.84218151,235.28,235.2,20.84218151]
[1732708557914,20.84218151,235.3,235.22,20.84218151]
[1732708559110,20.84218151,235.26,235.19,20.84218151]
[1732708559311,20.84218151,235.26,235.17,20.84218151]
[1732708568414,20.84218151,235.26,235.19,20.84218151]
[1732708570539,13.02867921,235.27,235.19,13.02867921]
[1732708572743,25.54627652,235.32,235.19,13.02867921]
[1732708572939,23.776884,235.27,235.19,13.02867921]
[1732708573343,13.02867921,235.24,235.17,13.02867921]
[1732708573528,23.776884,235.23,235.17,13.02867921]
[1732708574820,23.776884,235.25,235.19,13.02867921]
[1732708575022,33.02867921,235.28,235.19,13.02867921]
[1732708575238,20.0,235.24,235.19,13.02867921]
[1732708575433,23.776884,235.27,235.19,13.02867921]
[1732708575941,13.02867921,235.32,235.23,13.02867921]
[1732708577621,13.02867921,235.32,235.25,13.02867921]
[1732708577818,13.02867921,235.34,235.25,13.02867921]
[1732708578035,13.02867921,235.36,235.29,13.02867921]
[1732708578628,13.02867921,235.34,235.27,13.02867921]
[1732708580323,13.02867921,235.34,235.17,0.84798004]
[1732708580652,13.02867921,235.3,235.22,13.02867921]
[1732708582562,14.77472056,235.44,235.24,13.02867921]
[1732708582563,13.02867921,235.32,235.24,13.02867921]
[1732708583822,13.02867921,235.32,235.15,24.62503227]
[1732708583823,13.02867921,235.25,235.15,0.84814827]
[1732708584137,13.02867921,235.25,235.09,6.62693281]
[1732708584138,13.02867921,235.18,235.1,13.02867921]
[1732708586946,1.82075074,235.25,234.99,19.65561181]
[1732708586947,33.02867921,235.15,234.99,19.65561181]
[1732708587154,13.02867921,235.09,235.0,13.02867921]
[1732708588551,13.02867921,235.11,235.02,13.02867921]
[1732708590429,13.02867921,235.07,234.98,13.02867921]
[1732708591043,13.02867921,235.09,235.0,13.02867921]
[1732708594427,23.776884,235.08,235.0,13.02867921]
[1732708595658,23.776884,235.08,235.02,13.02867921]
[1732708597363,13.02867921,235.07,234.96,0.5143397]
[1732708597543,13.02867921,235.05,234.96,0.5143397]
[1732708597855,13.02867921,235.05,234.97,13.02867921]
[1732708598555,13.02867921,235.07,234.99,13.02867921]
[1732708598765,13.02867921,235.07,234.96,0.5143397]
[1732708598766,23.776884,235.08,235.01,13.02867921]
[1732708600428,23.776884,235.08,234.99,13.02867921]
[1732708600643,13.02867921,235.05,234.96,0.5143397]
[1732708601261,0.38253844,235.15,234.96,0.5143397]
[1732708601262,6.55085765,235.4,235.04,13.02867921]
[1732708601442,13.02867921,235.2,235.11,13.02867921]
[1732708603152,13.028679,235.36,235.15,13.02867921]
[1732708603335,13.02867921,235.3,235.21,13.02867921]
[1732708603833,13.02867921,235.3,235.1,23.776884]
[1732708603834,13.02867921,235.26,235.17,13.02867921]
[1732708605157,1.77175329,235.37,235.05,17.81069831]
[1732708605158,13.02867921,235.24,235.05,5.03069831]
[1732708605466,23.776884,235.25,235.14,13.02867921]
[1732708605467,13.02867921,235.22,235.14,13.02867921]
[1732708606957,20.0,235.22,235.14,13.02867921]
[1732708607159,20.0,235.21,235.14,13.02867921]
[1732708607656,20.0,235.21,235.08,33.02867921]
[1732708607657,6.55085765,235.57,235.2,13.02867921]
[1732708607846,13.02867921,235.34,235.25,13.02867921]
[1732708608559,17.02204,235.49,235.27,13.02867921]
[1732708608764,13.02867921,235.36,235.27,13.02867921]
[1732708609264,13.02867921,235.34,235.27,13.02867921]
[1732708609557,13.02867921,235.44,235.27,13.02867921]
[1732708609558,13.02867921,235.36,235.27,13.02867921]
[1732708610346,20.82897653,235.37,235.28,20.82897653]
[1732708611160,20.0,235.34,235.28,20.82897653]
[1732708612654,20.82897653,235.37,235.28,20.82897653]
[1732708613059,20.82897653,235.43,235.35,20.82897653]
[1732708613246,20.82897653,235.47,235.39,20.82897653]
[1732708614252,20.82897653,235.47,235.27,23.776884]
[1732708614559,20.82897653,235.47,235.37,20.82897653]
[1732708615274,20.0,235.44,235.37,20.82897653]
[1732708618342,19.5,235.44,235.37,20.82897653]
[1732708618545,19.5,235.44,235.39,20.82897653]
[1732708620057,20.82897653,235.41,235.31,20.82897653]
[1732708620242,40.32897653,235.44,235.36,20.82897653]
[1732708620243,20.82897653,235.44,235.36,20.82897653]
[1732708620443,20.82897653,235.46,235.38,20.82897653]
[1732708620640,20.0,235.43,235.38,20.82897653]
[1732708621759,20.0,235.43,235.36,20.82897653]
[1732708623947,1.81391993,235.53,235.26,0.84758156]
[1732708623948,20.82897653,235.42,235.34,20.82897653]
[1732708624274,20.82897653,235.4,235.32,20.82897653]
[1732708624655,20.82897653,235.38,235.3,20.82897653]
[1732708624859,20.82897653,235.36,235.28,20.82897653]
[1732708625573,20.82897653,235.36,235.19,0.8478463]
[1732708625870,20.82897653,235.32,235.24,20.82897653]
[1732708627267,23.776884,235.43,235.26,20.82897653]
[1732708627268,20.82897653,235.34,235.26,20.82897653]
[1732708627450,20.0,235.32,235.28,20.82897653]
[1732708628246,20.0,235.33,235.28,20.82897653]
[1732708629167,20.0,235.33,235.2,21.67690155]
[1732708629168,20.0,235.33,235.26,20.82897653]
[1732708629556,20.82897653,235.32,235.26,20.82897653]
[1732708629864,20.82897653,235.32,235.24,20.82897653]
[1732708630375,13.02443369,235.31,235.23,13.02443369]
[1732708631170,13.02443369,235.31,235.15,0.84804903]
[1732708631171,13.02443369,235.31,235.24,13.02443369]
[1732708631369,13.02443369,235.32,235.24,13.02443369]
[1732708632570,6.56411875,235.74,235.3,13.02443369]
[1732708632749,13.02443369,235.39,235.3,13.02443369]
[1732708634755,20.0,235.36,235.3,13.02443369]
[1732708635145,13.02443369,235.41,235.33,13.02443369]
[1732708635462,9.46438684,235.7,235.39,13.02443369]
[1732708635784,13.02443369,235.5,235.42,13.02443369]
[1732708638355,13.02443369,235.52,235.45,13.02443369]
[1732708639247,13.02443369,235.5,235.42,13.02443369]
[1732708639445,13.02443369,235.48,235.35,20.0]
[1732708639678,13.02443369,235.48,235.41,13.02443369]
[1732708640369,13.02443369,235.5,235.43,13.02443369]
[1732708641256,13.02443369,235.52,235.45,13.02443369]
[1732708641455,13.02443369,235.54,235.45,13.02443369]
[1732708644273,13.02443369,235.54,235.47,13.02443369]
[1732708644853,23.776884,235.77,235.49,13.02443369]
[1732708645061,13.02443369,235.57,235.49,13.02443369]
[1732708645478,17.003389,235.75,235.55,13.02443369]
[1732708645662,13.02443369,235.63,235.55,13.02443369]
[1732708645860,13.02443369,235.61,235.53,13.02443369]
[1732708646179,13.02443369,235.57,235.49,13.02443369]
[1732708646356,13.02443369,235.57,235.38,39.09692421]
[1732708646357,20.79346784,235.57,235.48,20.79346784]
[1732708646766,20.79346784,235.57,235.5,20.79346784]
[1732708647551,20.79346784,235.61,235.52,20.79346784]
[1732708648378,20.79346784,235.55,235.45,0.84702204]
[1732708648584,20.79346784,235.47,235.31,6.60099138]
[1732708648784,20.79346784,235.47,235.39,20.79346784]
[1732708649573,20.79346784,235.45,235.35,20.79346784]
[1732708650263,20.79346784,235.45,235.37,20.79346784]
[1732708651380,20.79346784,235.45,235.35,20.79346784]
[1732708652755,20.79346784,235.45,235.37,20.79346784]
[1732708652970,20.79346784,235.45,235.32,20.0]
[1732708652971,20.79346784,235.49,235.41,20.79346784]
[1732708653290,20.79346784,235.51,235.43,20.79346784]
[1732708653787,20.79346784,235.53,235.45,20.79346784]
[1732708654765,20.79346784,235.55,235.47,20.79346784]
[1732708654981,20.79346784,235.57,235.49,20.79346784]
[1732708655182,20.79346784,235.53,235.45,20.79346784]
[1732708655378,20.79346784,235.49,235.41,20.79346784]
[1732708656471,4.87636195,235.63,235.35,7.44835589]
[1732708656472,20.79346784,235.52,235.45,20.79346784]
[1732708656796,20.79346784,235.47,235.35,6.60099138]
[1732708657092,20.79346784,235.43,235.28,6.60099138]
[1732708657296,20.79346784,235.43,235.35,20.79346784]
[1732708658471,20.79346784,235.45,235.37,20.79346784]
[1732708659794,20.79346784,235.45,235.35,20.79346784]
[1732708660595,20.79346784,235.51,235.43,20.79346784]
[1732708660898,20.79346784,235.46,235.38,20.79346784]
[1732708661065,20.79346784,235.43,235.36,20.79346784]
[1732708662185,20.79346784,235.47,235.38,20.79346784]
[1732708662388,20.79346784,235.47,235.35,20.0]
[1732708662567,20.79346784,235.47,235.39,20.79346784]
[1732708662769,20.79346784,235.56,235.41,20.79346784]
[1732708662974,20.79346784,235.5,235.41,20.79346784]
[1732708663469,20.79346784,235.48,235.39,20.79346784]
[1732708664421,20.79346784,235.46,235.37,20.79346784]
[1732708664772,20.79346784,235.46,235.32,20.79346784]
[1732708664773,20.79346784,235.46,235.39,20.79346784]
[1732708664988,20.79346784,235.48,235.39,20.79346784]
[1732708666597,20.79346784,235.48,235.41,20.79346784]
[1732708667399,20.79346784,235.52,235.43,20.79346784]
[1732708668374,20.79346784,235.52,235.45,20.79346784]
[1732708669771,20.79346784,235.52,235.43,20.79346784]
[1732708669987,20.79346784,235.48,235.39,20.79346784]
[1732708670373,13.00505849,235.48,235.4,13.00505849]
[1732708672472,23.776884,235.55,235.33,23.776884]
[1732708672473,13.00505849,235.52,235.44,13.00505849]
[1732708672897,13.00505849,235.5,235.42,13.00505849]
[1732708674398,13.00505849,235.52,235.44,13.00505849]
[1732708674692,13.00505849,235.54,235.46,13.00505849]
[1732708675381,13.00505849,235.56,235.46,13.00505849]
[1732708675580,13.00505849,235.56,235.32,13.00505849]
[1732708675581,13.00505849,235.48,235.4,13.00505849]
[1732708676591,13.00505849,235.5,235.4,13.00505849]
[1732708677396,13.00505849,235.5,235.42,13.00505849]
[1732708679980,13.00505849,235.56,235.46,13.00505849]
[1732708680203,13.00505849,235.5,235.42,13.00505849]
[1732708681801,13.00505849,235.52,235.44,13.00505849]
[1732708683480,23.776884,235.59,235.48,13.00505849]
[1732708683684,13.00505849,235.56,235.48,13.00505849]
[1732708683897,13.00505849,235.6,235.5,13.00505849]
[1732708684707,13.00505849,235.53,235.46,13.00505849]
[1732708686105,13.00505849,235.51,235.44,13.00505849]
[1732708686315,13.00505849,235.53,235.44,13.00505849]
[1732708687218,13.00505849,235.57,235.49,13.00505849]
[1732708687516,13.00505849,235.59,235.51,13.00505849]
[1732708688021,13.00505849,235.61,235.51,13.00505849]
[1732708689805,13.00505849,235.61,235.53,13.00505849]
[1732708690015,13.00505849,235.63,235.55,13.00505849]
[1732708690907,13.00505849,235.63,235.57,13.00505849]
[1732708691704,13.00505849,235.65,235.57,13.00505849]
[1732708692621,13.00505849,235.68,235.6,13.00505849]
[1732708692798,13.00505849,235.68,235.52,20.0]
[1732708692799,13.00505849,235.62,235.52,20.0]
[1732708693112,13.00505849,235.6,235.53,13.00505849]
[1732708693692,13.00505849,235.62,235.53,13.00505849]
[1732708694924,13.00505849,235.6,235.51,13.00505849]
[1732708695298,13.00505849,235.58,235.49,13.00505849]
[1732708696622,13.00505849,235.56,235.47,13.00505849]
[1732708697404,13.00505849,235.54,235.45,13.00505849]
[1732708697605,13.00505849,235.52,235.45,13.00505849]
[1732708697927,13.00505849,235.55,235.47,13.00505849]
[1732708698118,13.00505849,235.56,235.48,13.00505849]
[1732708700815,13.00505849,235.52,235.44,13.00505849]
[1732708701422,13.00505849,235.5,235.42,13.00505849]
[1732708705221,13.00505849,235.5,235.39,20.0]
[1732708705405,13.00505849,235.48,235.39,13.00505849]
[1732708705614,13.00505849,235.46,235.39,13.00505849]
[1732708707008,13.00505849,235.44,235.35,13.00505849]
[1732708707211,13.00505849,235.43,235.35,13.00505849]
[1732708708425,13.00505849,235.44,235.36,13.00505849]
[1732708719112,13.00505849,235.44,235.37,13.00505849]
[1732708720235,13.00505849,235.48,235.41,13.00505849]
[1732708720439,13.00505849,235.51,235.43,13.00505849]
[1732708721240,13.00505849,235.47,235.39,13.00505849]
[1732708721419,1.81419373,235.54,235.32,13.00505849]
[1732708721420,13.00505849,235.45,235.38,13.00505849]
[1732708721835,13.00505849,235.46,235.39,13.00505849]
[1732708722422,8.3239354,235.46,235.39,8.3239354]
[1732708723213,8.3239354,235.45,235.32,20.84731652]
[1732708723418,8.3239354,235.45,235.38,8.3239354]
[1732708725031,8.3239354,235.45,235.37,8.3239354]
[1732708725724,23.776884,235.51,235.39,8.3239354]
[1732708725920,8.3239354,235.47,235.39,8.3239354]
[1732708726327,8.3239354,235.46,235.38,8.3239354]
[1732708727232,8.3239354,235.46,235.4,8.3239354]
[1732708728143,8.3239354,235.46,235.32,20.84752255]
[1732708728327,8.3239354,235.38,235.26,6.60099138]
[1732708728528,8.3239354,235.38,235.3,8.3239354]
[1732708735141,8.3239354,235.37,235.3,8.3239354]
[1732708735522,8.3239354,235.37,235.25,20.0]
[1732708735732,8.3239354,235.36,235.28,8.3239354]
[1732708738552,8.3239354,235.38,235.3,8.3239354]
[1732708739551,8.3239354,235.37,235.3,8.3239354]
[1732708739744,8.3239354,235.37,235.22,0.84781977]
[1732708739745,8.3239354,235.37,235.29,8.3239354]
[1732708741651,20.0,235.4,235.29,8.3239354]
[1732708741848,8.3239354,235.37,235.29,8.3239354]
[1732708742434,20.0,235.41,235.29,8.3239354]
[1732708742634,8.3239354,235.37,235.29,8.3239354]
[1732708743949,20.0,235.41,235.29,8.3239354]
[1732708744249,8.3239354,235.37,235.29,8.3239354]
[1732708749732,8.3239354,235.34,235.24,20.0]
[1732708749931,20.0,235.4,235.24,20.0]
[1732708750153,8.3239354,235.33,235.26,8.3239354]
[1732708750357,8.3239354,235.34,235.26,8.3239354]
[1732708750534,8.3239354,235.34,235.27,8.3239354]
[1732708751041,8.3239354,235.34,235.23,20.0]
[1732708751241,8.3239354,235.34,235.22,20.0]
[1732708751444,8.3239354,235.34,235.27,8.3239354]
[1732708752439,6.66163806,235.46,235.29,8.3239354]
[1732708752440,23.776884,235.39,235.29,8.3239354]
[1732708752633,8.3239354,235.37,235.29,8.3239354]
[1732708754354,8.3239354,235.35,235.27,8.3239354]
[1732708761255,8.3239354,235.37,235.27,8.3239354]
[1732708761436,8.3239354,235.37,235.24,20.0]
[1732708761437,20.0,235.41,235.31,8.3239354]
[1732708761637,8.3239354,235.4,235.31,8.3239354]
[1732708763050,8.3239354,235.38,235.31,8.3239354]
[1732708765666,8.3239354,235.36,235.27,8.3239354]
[1732708766575,8.3239354,235.36,235.26,8.3239354]
[1732708767479,8.3239354,235.34,235.26,8.3239354]
[1732708768172,6.56411875,235.59,235.32,41.619677]
[1732708768479,92.03114841,235.66,235.32,41.619677]
[1732708768480,8.3239354,235.48,235.4,8.3239354]
[1732708768773,33.2957416,235.56,235.36,8.3239354]
[1732708768774,8.3239354,235.46,235.36,8.3239354]
[1732708770068,8.3239354,235.44,235.31,0.84750484]
[1732708770260,8.3239354,235.42,235.34,8.3239354]
[1732708771763,23.776884,235.45,235.38,8.3239354]
[1732708772071,32.1008194,235.45,235.36,8.3239354]
[1732708773554,4.87636195,235.58,235.4,8.3239354]
[1732708773756,4.87636195,235.58,235.37,0.84754818]
[1732708773757,8.3239354,235.51,235.42,8.3239354]
[1732708774273,8.3239354,235.51,235.44,8.3239354]
[1732708775867,23.776884,235.57,235.44,8.3239354]
[1732708776180,8.3239354,235.53,235.44,8.3239354]
[1732708776878,8.3239354,235.53,235.38,20.84724575]
[1732708777183,8.3239354,235.53,235.44,8.3239354]
[1732708777880,8.3239354,235.51,235.38,0.84724523]
[1732708778081,8.3239354,235.49,235.38,20.0]
[1732708778379,8.3239354,235.49,235.41,8.3239354]
[1732708780264,8.3239354,235.43,235.29,6.60099138]
[1732708780463,8.3239354,235.43,235.28,26.40396555]
[1732708780464,8.3239354,235.4,235.28,6.60099138]
[1732708780666,8.3239354,235.4,235.31,8.3239354]
[1732708781360,8.3239354,235.38,235.29,8.3239354]
[1732708782177,8.3239354,235.36,235.28,8.3239354]
[1732708782381,8.3239354,235.34,235.26,8.3239354]
[1732708782878,20.0,235.41,235.26,8.3239354]
[1732708783185,8.3239354,235.35,235.26,8.3239354]
[1732708783683,8.3239354,235.35,235.28,8.3239354]
[1732708785380,8.3239354,235.35,235.18,28.17628871]
[1732708785381,23.776884,235.28,235.16,6.60099138]
[1732708785590,23.776884,235.28,235.16,8.3239354]
[1732708785591,8.3239354,235.25,235.16,8.3239354]
[1732708785962,23.776884,235.28,235.18,8.3239354]
[1732708786167,8.3239354,235.27,235.18,8.3239354]
[1732708788290,13.02816975,235.27,235.18,13.02816975]
[1732708796784,7.18970586,235.35,235.18,13.02816975]
[1732708796998,13.02816975,235.33,235.25,13.02816975]
[1732708797178,13.02816975,235.35,235.27,13.02816975]
[1732708800501,13.02816975,235.31,235.17,20.0]
[1732708800794,13.02816975,235.31,235.24,13.02816975]
[1732708800978,13.02816975,235.33,235.24,13.02816975]
[1732708801681,20.0,235.39,235.24,13.02816975]
[1732708802013,23.776884,235.41,235.28,13.02816975]
[1732708802175,23.776884,235.41,235.23,20.0]
[1732708802386,23.776884,235.33,235.25,13.02816975]
[1732708802576,1.80687063,235.42,235.29,13.02816975]
[1732708802777,18.41008651,235.52,235.3,13.02816975]
[1732708802978,4.54482835,235.49,235.3,13.02816975]
[1732708803179,13.02816975,235.37,235.3,13.02816975]
[1732708804405,13.02816975,235.36,235.28,13.02816975]
[1732708805696,13.02816975,235.38,235.28,13.02816975]
[1732708805912,13.02816975,235.38,235.3,13.02816975]